Cogmind - Beta 15 @@@ ROGUE MODE // 2025.05.26 @ 01:55:39 Player: Sunvar Result: Self-destructed Performance ------------- Evolutions (6) 3000 Regions Visited (15) 3000 Robots Destroyed (67) 335 Value Destroyed (2239) 2239 Prototype IDs (27) 540 Alien Tech Used (0) 0 Bonus (3112) 3112 TOTAL SCORE: 12226 Bonus ------- High Alert Combat Kills 364 Follower Combat Kills 2124 Entered Garrisons 200 Aligned with FarCom 300 Built Enhanced Grunts 300 A7 Reached Mainframe 300 Friendly Fire -476 Cogmind --------- Core Integrity 1150/1150 Matter 222/300 Energy 410/410 System Corruption 0% Temperature Cool (0) Movement Walking (120) Location -4/Factory Parts ------- > --- POWER (2) -------- Light Fission Core Quantum Reactor > --- PROPULSION (6) --- Centrium Heavy Treads Enhanced Flexi-carbon Leg Enhanced Flexi-carbon Leg Enhanced Flexi-carbon Leg Improved Antigrav System > --- UTILITY (9) ------ Advanced Heat Sink Experimental Sensor Array Improved Signal Interpreter Centrium Medium Armor Plating Hacking Suite > --- WEAPON (2) ------- Advanced KE Penetrator Power Sword > --- INVENTORY (5) ---- Cesium-ion Thruster Nuclear Pulse Thruster Phase Cannon Advanced KE Penetrator Micro-nuke Launcher Peak State ------------ > --- POWER ------------ Light Fission Core Quantum Reactor > --- PROPULSION ------- Centrium Heavy Treads Enhanced Flexi-carbon Leg Enhanced Flexi-carbon Leg Enhanced Flexi-carbon Leg Improved Antigrav System > --- UTILITY ---------- Advanced Heat Sink Experimental Sensor Array Improved Signal Interpreter Improved Medium Armor Plating Centrium Medium Armor Plating Hacking Suite > --- WEAPON ----------- Advanced KE Penetrator Power Sword > --- INVENTORY -------- Cesium-ion Thruster Nuclear Pulse Thruster Phase Cannon Advanced KE Penetrator [Rating: 108] Favorites ----------- Power Light Fission Core Engine Cooled Ion Engine Power Core Light Fission Core Reactor Quantum Reactor Propulsion Aerolev Unit Treads Centrium Heavy Treads Leg Enhanced Flexi-carbon Leg Hover Unit Aerolev Unit Flight Unit Improved VTOL Module Utility Improved Signal Interpreter Device Experimental Sensor Array Storage Advanced Energy Well Processor Improved Signal Interpreter Hackware Hacking Suite Protection Improved Medium Armor Plating Weapon Enhanced Autogun Energy Gun 01-MTF's Shockpuncher Energy Cannon Phase Cannon Ballistic Gun Enhanced Autogun Launcher Long-range Missile Launcher Special Weapon Remote Datajack Slashing Weapon Power Sword Piercing Weapon Heavy Pick Build | -11 -10 -9 -9 -9 -8 -8 -8 -8 -8 -8 -6 -6 -6 -5 -4 ------- Run | Yrd Mat Mat Min Exi Min Mat Gar Sto Rec Scr Fac Ext Cet Fac Fac Slots Evolved 12 | . . 2 . . . 2 . . . . 4 . . 2 2 Power 1 | . . . . . . . . . . . 1 . . . . Propulsion 4 | . . 2 . . . . . . . . 1 . . 1 . Utility 7 | . . . . . . 2 . . . . 2 . . 1 2 Weapon . | . . . . . . . . . . . . . . . . Parts Attached 78 | 5 . 4 . 3 2 6 2 23 3 1 11 8 9 . 1 Power 11 | . . . . . 1 . . 6 . . 2 1 1 . . Engine 8 | . . . . . 1 . . 6 . . . 1 . . . Core 2 | . . . . . . . . . . . 2 . . . . Reactor 1 | . . . . . . . . . . . . . 1 . . Propulsion 18 | 2 . 2 . . . 1 . 7 . . . 1 4 . 1 Treads 3 | . . 2 . . . . . . . . . . 1 . . Leg 5 | 2 . . . . . . . . . . . . 3 . . Wheel . | . . . . . . . . . . . . . . . . Hover 9 | . . . . . . 1 . 6 . . . 1 . . 1 Flight 1 | . . . . . . . . 1 . . . . . . . Utility 19 | 1 . . . . 1 3 1 1 1 1 6 2 2 . . Device 6 | 1 . . . . 1 . . . . . 1 2 1 . . Storage 1 | . . . . . . . . 1 . . . . . . . Processor 6 | . . . . . . 3 1 . 1 . 1 . . . . Hackware 3 | . . . . . . . . . . 1 2 . . . . Protection 3 | . . . . . . . . . . . 2 . 1 . . Artifact . | . . . . . . . . . . . . . . . . Weapon 30 | 2 . 2 . 3 . 2 1 9 2 . 3 4 2 . . Energy Gun 8 | 2 . . . . . . . 5 . . . 1 . . . Energy Cannon 3 | . . . . 1 . 1 . . . . 1 . . . . Ballistic Gun 10 | . . 2 . 1 . 1 1 2 1 . . . 2 . . Ballistic Cannon . | . . . . . . . . . . . . . . . . Launcher 3 | . . . . . . . . 2 . . 1 . . . . Special Weapon 1 | . . . . . . . . . . . . 1 . . . Impact Weapon . | . . . . . . . . . . . . . . . . Slashing Weapon 4 | . . . . 1 . . . . 1 . . 2 . . . Piercing Weapon 1 | . . . . . . . . . . . 1 . . . . Special Melee Weapon . | . . . . . . . . . . . . . . . . Unidentified Prototypes 23 | . . 1 . 2 1 2 . 12 . . . . 4 1 . Parts Lost 22 | . . 4 . . 3 . 3 . . . . 5 5 1 1 Power 2 | . . . . . 1 . . . . . . 1 . . . Propulsion 10 | . . 3 . . 1 . 1 . . . . 1 3 1 . Utility 7 | . . 1 . . . . 1 . . . . 2 2 . 1 Weapon 3 | . . . . . 1 . 1 . . . . 1 . . . Highest Loss Streak 4 | . . 4 . . 3 . 2 . . . . 4 3 1 1 To Critical Strikes 1 | . . . . . . . . . . . . . 1 . . Average Backups 4 | 1 5 3 4 4 3 3 3 4 5 5 4 4 5 5 4 Power . | . 2 2 2 1 . . . . . . . . . . . Propulsion . | 1 2 . . . . . . . 2 1 . . 2 2 2 Utility . | . . . . 1 1 1 1 1 . . . 1 1 1 . Weapon 2 | . 1 1 2 2 2 2 2 2 3 3 3 3 1 2 2 Tool/Special . | . . . . . . . . . . . . . . . . Unused Backups 7 | . . . . 2 . . . 1 . 1 1 . . . 2 Power 1 | . . . . 1 . . . . . . . . . . . Propulsion 2 | . . . . . . . . . . 1 . . . . 1 Utility . | . . . . . . . . . . . . . . . . Weapon 4 | . . . . 1 . . . 1 . . 1 . . . 1 Tool/Special . | . . . . . . . . . . . . . . . . Average Slot Usage (%) 77 | . 57 59 22 22 18 25 49 73 99 100 93 97 87 76 72 Engine 3 | . . . . . . . . 4 9 9 5 . 5 . . Core 3 | . . . . . . . . . . . 1 12 6 5 5 Leg 3 | . 28 18 11 11 8 . . . . . . . 5 17 15 Hover 19 | . . . . . . 7 4 18 36 36 26 26 20 . 4 Flight 2 | . . . . . . . . 3 . . 6 5 . . . Device 6 | . 14 11 . . . . . 1 8 9 10 6 13 11 10 Processor 15 | . . . . . . 8 31 27 27 21 13 10 6 5 5 Hackware 4 | . . . . . . . . . . 5 12 12 6 5 5 Protection 2 | . . . . . . . . . . . 2 6 6 5 5 Energy Gun 3 | . 14 2 . . . . . 7 9 9 . . . . . Ballistic Gun 6 | . . 7 11 9 9 3 6 8 7 9 6 2 5 5 5 Slashing Weapon 1 | . . . . 1 . 5 7 . 1 . . . 6 5 5 Piercing Weapon 1 | . . . . . . . . . . . 5 3 . . . Peak Build Rating 108 | 4 4 7 5 22 14 27 31 55 54 54 70 74 93 93 108 Average Rating 50 | 3 4 6 4 5 5 16 25 39 52 53 63 66 74 93 100 On Entrance 34 | . 4 4 4 5 6 3 27 16 54 53 54 69 74 93 93 Naked Turns 53 | . . . . . 26 27 . . . . . . . . . Heaviest Build 52 | 3 3 4 3 3 3 22 6 20 17 17 35 37 45 45 52 Greatest Support 84 | 3 3 3 3 3 3 8 8 35 35 35 35 47 84 84 84 Greatest Overweight (x) 2 | . . 1 . . . 2 1 1 . . . . 1 . . Average Overweight (x) . | . . . . . . . . . . . . . . . . Largest Inventory Capacity 5 | 5 5 5 5 5 5 5 5 5 5 5 5 5 5 5 5 Average Capacity 5 | 5 5 5 5 5 5 5 5 5 5 5 5 5 5 5 5 Most Carried 5 | 5 5 4 5 5 5 5 5 5 5 5 5 5 5 5 5 Average Carried 4 | 2 5 3 4 4 4 4 4 4 5 4 4 4 5 5 4 Final Capacity 5 | 5 5 5 5 5 5 5 5 5 5 5 5 5 5 5 5 Final Carried 5 | 5 5 4 5 5 4 5 5 5 5 5 5 5 5 5 5 Class Distribution -------------------- 32% | Mutant 21% | Hacker-Scout 15% | Scout 14% | Commander-Mutant 12% | Scavenger-Mutant 4% | Hacker-Mutant Dominant Class ---------------- Mutant | -10/Materials Mutant | -9/Materials Mutant | -9/Mines Mutant | -9/Exiles Mutant | -8/Mines Mutant | -8/Materials Mutant | -8/Garrison Commander-Mutant | -8/Storage Scout | -8/Recycling Scout | -8/Scraptown Hacker-Scout | -6/Factory Hacker-Scout | -6/Extension Commander-Mutant | -6/Cetus Scavenger-Mutant | -5/Factory Scavenger-Mutant | -4/Factory Resources | -11 -10 -9 -9 -9 -8 -8 -8 -8 -8 -8 -6 -6 -6 -5 -4 ----------- Run | Yrd Mat Mat Min Exi Min Mat Gar Sto Rec Scr Fac Ext Cet Fac Fac Matter Collected 2462 | 140 . . . . 37 35 242 552 52 20 113 1112 159 . . Remotely . | . . . . . . . . . . . . . . . . Salvage Created 2629 | 19 . . . . . 178 332 884 120 . 144 911 41 . . Parts 139 | 2 . . . . . 16 10 48 7 . 14 41 1 . . Haulers Intercepted 9 | . . . . . . 2 . 6 . . . 1 . . . Recyclers Shooed 1 | . . . . . . . . . . . . 1 . . . Parts Field Recycled . | . . . . . . . . . . . . . . . . Retrieved Matter . | . . . . . . . . . . . . . . . . Parts Self-Destructed . | . . . . . . . . . . . . . . . . Prevented . | . . . . . . . . . . . . . . . . Kills | -11 -10 -9 -9 -9 -8 -8 -8 -8 -8 -8 -6 -6 -6 -5 -4 ------- Run | Yrd Mat Mat Min Exi Min Mat Gar Sto Rec Scr Fac Ext Cet Fac Fac Combat Hostiles Destroyed 39 | . . . . . . 3 6 7 2 . 5 15 1 . . Melee 5 | . . . . . . . 5 . . . . . . . . Guns 13 | . . . . . . . 1 6 2 . 2 2 . . . Cannons 2 | . . . . . . . . . . . . 1 1 . . AOE 18 | . . . . . . 3 . . . . 3 12 . . . Classes Destroyed 14 | 1 . . . . . 3 2 3 . . 1 4 . . . Worker 4 | . . . . . . . . 1 . . 1 2 . . . Builder 6 | . . . . . . . . 1 . . . 5 . . . Tunneler 4 | 1 . . . . . . . . . . . 3 . . . Hauler 9 | . . . . . . 2 . 6 . . . 1 . . . Recycler 2 | . . . . . . . . 1 . . . 1 . . . Watcher 2 | . . . . . . 1 . . . . . . 1 . . Swarmer 6 | . . . . . . 3 . . . . 3 . . . . Saboteur 1 | . . . . . . . . . . . . 1 . . . Grunt 17 | . . . . . . . 3 4 . . . 10 . . . Duelist 1 | . . . . . . . . . . . . 1 . . . Sentry 10 | . . . . . . . 3 3 2 . . 2 . . . Hunter 1 | . . . . . . . . . . . . 1 . . . Programmer 2 | . . . . . . . . . . . 2 . . . . Cetus Guard 1 | . . . . . . . . . . . . . 1 . . Savage 1 | . . . . . . . . . . . . 1 . . . Best Kill Streak 12 | 1 . . . . . 3 5 8 1 . 3 12 2 . . Combat Bots Only 6 | . . . . . . 3 5 3 1 . 3 6 1 . . Max Kills in Single Turn 3 | 1 . . . . . 2 1 1 1 . 3 3 1 . . Gunslinging . | . . . . . . . . . . . . . . . . Exploded 3 | . . . . . . 2 . . . . 3 2 . . . Melee 1 | . . . . . . . 1 . . . . . . . . Uniques/NPCs Destroyed . | . . . . . . . . . . . . . . . . Combat | -11 -10 -9 -9 -9 -8 -8 -8 -8 -8 -8 -6 -6 -6 -5 -4 -------- Run | Yrd Mat Mat Min Exi Min Mat Gar Sto Rec Scr Fac Ext Cet Fac Fac Hostile Shots Fired 361 | . 7 85 . . 48 10 24 44 2 . 34 84 7 . 16 Missed 144 | . 2 23 . . 19 4 9 20 2 . 9 51 . . 5 Hits 217 | . 5 62 . . 29 6 15 24 . . 25 33 7 . 11 Melee 2 | . . 1 . . 1 . . . . . . . . . . Projectile 215 | . 5 61 . . 28 6 15 24 . . 25 33 7 . 11 Critical Strikes 12 | . . 1 . . 2 . . 3 . . . 2 4 . . Damage Taken 3750 | . 80 799 . . 399 114 239 372 . . 372 839 331 . 205 Core 920 | . 47 187 . . 205 23 145 115 . . 41 131 26 . . Absorbed by Shields 196 | . . . . . . . . . . . . 171 25 . . Regen/Repaired (Parts) 42 | . . . . . . . . 11 . . . 31 . . . Core Remaining (%) 67 | 100 81 . . . 2 . . . . 48 . . 76 100 . Volleys Fired 204 | 3 . 3 . . . 2 3 58 3 . 14 108 7 . 3 Largest 2 | 2 . 1 . . . 1 1 2 2 . 2 2 1 . 1 Hottest 250 | 90 . 50 . . . 250 25 75 75 . 110 105 85 . 35 Shots Fired 247 | 6 . 3 . . . 2 3 81 6 . 21 114 8 . 3 Gun 160 | 6 . 3 . . . . 3 77 6 . 13 46 3 . 3 Cannon 12 | . . . . . . 2 . . . . 7 1 2 . . Launcher 33 | . . . . . . . . 4 . . 1 25 3 . . Special 42 | . . . . . . . . . . . . 42 . . . Kinetic 126 | . . 1 . . . . 3 58 3 . 13 42 3 . 3 Thermal 24 | 6 . 2 . . . 2 . . . . 7 5 2 . . Explosive 29 | . . . . . . . . . . . 1 25 3 . . Electromagnetic 26 | . . . . . . . . 23 3 . . . . . . Robot Hit Streak 13 | 4 . 7 . . . . 1 13 12 . 8 10 5 . 1 Robot Miss Streak 3 | 1 . 1 . . . . 1 3 1 . 2 3 2 . 2 Penetration Max . | . . . . . . . . . . . . . . . . Secondary Targets 1 | . . . . . . . . 1 . . . . . . . Max Gunslinging Chain 1 | . . . . . . . . 1 . . . . . . . Shots Hit Robots 199 | 5 . 3 . . . 7 14 56 5 . 14 90 4 . 1 Core Hits 140 | 1 . 1 . . . 7 8 23 3 . 9 82 6 . . Critical Kills . | . . . . . . . . . . . . . . . . Critical Parts Destroyed 2 | . . . . . . . . 1 1 . . . . . . Critical Strikes 11 | 1 . . . . . 2 4 2 1 . 1 . . . . Burn 1 | 1 . . . . . . . . . . . . . . . Destroy 2 | . . . . . . . . 1 1 . . . . . . Corrupt 1 | . . . . . . . . 1 . . . . . . . Sever 6 | . . . . . . 2 4 . . . . . . . . Impale 1 | . . . . . . . . . . . 1 . . . . Melee Attacks 40 | . . . . . . 8 19 . . . 5 6 . . 2 Impact . | . . . . . . . . . . . . . . . . Slashing 29 | . . . . . . 8 19 . . . . . . . 2 Piercing 11 | . . . . . . . . . . . 5 6 . . . Sneak Attacks 6 | . . . . . . 3 1 . . . 1 1 . . . Combat Hostiles 1 | . . . . . . . 1 . . . . . . . . Follow-up Attacks . | . . . . . . . . . . . . . . . . Damage Inflicted 9469 | 58 . 40 . . . 574 641 1519 135 . 613 5142 728 . 19 Guns 2246 | 58 . 35 . . . . 34 1194 135 . 172 571 28 . 19 Cannons 274 | . . . . . . . . . . . 182 31 61 . . Explosions 5621 | . . . . . . 129 . 325 . . 179 4349 639 . . Melee 1323 | . . . . . . 445 607 . . . 80 191 . . . Ramming 5 | . . 5 . . . . . . . . . . . . . Kinetic 1502 | . . 10 . . . . 34 687 37 . 172 515 28 . 19 Thermal 542 | 58 . 25 . . . 129 . . . . 182 87 61 . . Explosive 5167 | . . . . . . . . . . . 179 4349 639 . . Electromagnetic 930 | . . . . . . . . 832 98 . . . . . . Impact . | . . . . . . . . . . . . . . . . Slashing 1052 | . . . . . . 445 607 . . . . . . . . Piercing 271 | . . . . . . . . . . . 80 191 . . . Highest Corruption 13 | . . . . . . . . . . . . 13 13 . . Average Corruption 13 | . . . . . . . . . . . . 13 13 . . Corruption Purged . | . . . . . . . . . . . . . . . . Corruption Blocked . | . . . . . . . . . . . . . . . . Effects 16 | . . . . . . . . . . . . 1 15 . . Message Errors 3 | . . . . . . . . . . . . . 3 . . Matter Fused 5 | . . . . . . . . . . . . . 5 . . Heat Flow Errors 1 | . . . . . . . . . . . . 1 . . . Energy Discharges 4 | . . . . . . . . . . . . . 4 . . Data Loss (major) 2 | . . . . . . . . . . . . . 2 . . Misfires 1 | . . . . . . . . . . . . . 1 . . Overload Shots . | . . . . . . . . . . . . . . . . Overflow Damage 199 | . . . . . . 11 6 3 . . 10 158 11 . . Projectiles 6 | . . . . . . . . . . . 6 . . . . Explosions 161 | . . . . . . . . 3 . . 4 143 11 . . Melee 32 | . . . . . . 11 6 . . . . 15 . . . Knockbacks . | . . . . . . . . . . . . . . . . Impact . | . . . . . . . . . . . . . . . . Kinetic . | . . . . . . . . . . . . . . . . Secondary . | . . . . . . . . . . . . . . . . Self-Inflicted Damage 285 | . . 2 . . . 67 . . . . . 164 52 . . Shots 9 | . . . . . . 4 . . . . . 4 1 . . Rammed 3 | . . 3 . . . . . . . . . . . . . Targets Rammed 3 | . . 3 . . . . . . . . . . . . . Kicked . | . . . . . . . . . . . . . . . . Crushed . | . . . . . . . . . . . . . . . . Highest Temperature 322 | 70 . . . . 16 270 . 115 27 . 322 251 20 . . Average Temperature 70 | 42 . . . . 12 154 . 36 15 . 151 54 12 . . Received Heat Transfer 869 | . 30 192 . . 216 . 81 225 . . . 125 . . . Effects 1 | . . . . . . . . . . . . 1 . . . Energy Bleed 1 | . . . . . . . . . . . . 1 . . . Siege Activations . | . . . . . . . . . . . . . . . . Martial Activations . | . . . . . . . . . . . . . . . . Shielding Activations . | . . . . . . . . . . . . . . . . Robots Disrupted 1 | . . . . . . . . 1 . . . . . . . Combat Hostiles 1 | . . . . . . . . 1 . . . . . . . Robots Corrupted 1 | . . . . . . . . 1 . . . . . . . Combat Hostiles 1 | . . . . . . . . 1 . . . . . . . Parts Fried 5 | . . . . . . . . 5 . . . . . . . Impact Corruptions . | . . . . . . . . . . . . . . . . Robots Melted . | . . . . . . . . . . . . . . . . Combat Hostiles . | . . . . . . . . . . . . . . . . Parts Melted 5 | 1 . . . . . 3 . . . . . 1 . . . Heat Transferred 1517 | 235 . 74 . . . 800 . . . . 185 149 74 . . Parts Sabotaged . | . . . . . . . . . . . . . . . . Parts Stolen . | . . . . . . . . . . . . . . . . Parts Stripped . | . . . . . . . . . . . . . . . . Power Chain Reactions . | . . . . . . . . . . . . . . . . Alert | -11 -10 -9 -9 -9 -8 -8 -8 -8 -8 -8 -6 -6 -6 -5 -4 ------- Run | Yrd Mat Mat Min Exi Min Mat Gar Sto Rec Scr Fac Ext Cet Fac Fac Maximum Alert Level 4 | . . . . . . . 2 3 2 . . 4 3 1 . Low Security (%) 50 | 100 100 100 100 . 100 100 72 4 11 . 100 63 . . 100 Level 1 23 | . . . . . . . 13 37 80 . . 2 . 100 . Level 2 17 | . . . . . . . 14 54 8 . . 18 36 . . Level 3 7 | . . . . . . . . 3 . . . 9 63 . . Level 4 1 | . . . . . . . . . . . . 7 . . . Level 5 . | . . . . . . . . . . . . . . . . High Security . | . . . . . . . . . . . . . . . . Max Security . | . . . . . . . . . . . . . . . . Peak Influence 1517 | 5 . . . . 70 81 411 719 424 . 146 1517 908 347 125 Initial 842 | . . . . . . 23 37 200 277 . . 67 842 347 125 Average 270 | . . . . . 21 47 152 470 298 . 16 295 773 298 87 Influence Increases 4566 | 5 . . . . 150 144 404 1061 244 . 202 2053 291 . 12 Destroy 0b10 Robot/C 1740 | . . . . . . 60 120 440 40 . 100 840 140 . . Destroy 0b10 Robot/NC 180 | 5 . . . . . 15 . 55 . . 5 95 5 . . Destroy Leader 312 | . . . . . . 16 10 172 . . 20 94 . . . Allied During Kill 975 | . . . . . . . . 152 . . . 748 75 . . Successful Hack 130 | . . . . . . 14 14 47 24 . 12 13 . . 6 Select Force Hacks 180 | . . . . . . . . . 180 . . . . . . Disable Machine 135 | . . . . . . . . 75 . . 15 45 . . . Anti-Garrison Action 50 | . . . . . . . 50 . . . . . . . . Destroy Structure 264 | . . . . . . 9 15 . . . 20 173 41 . 6 Partial Spotted 105 | . . . . . . . 45 30 . . . 30 . . . Lose Combat Pursuer 495 | . . . . . 150 30 150 90 . . 30 15 30 . . Influence Decreases 4519 | 5 . . . . 90 147 50 761 790 165 64 686 1175 364 222 Entered New Map 2007 | . . . . . . 37 20 211 434 165 . 71 663 274 132 Time Decay 1635 | 5 . . . . 60 110 . 350 356 . 64 308 222 80 80 Lost Part 180 | . . . . . 30 . 30 . . . . 50 50 10 10 Lost Ally 657 | . . . . . . . . 200 . . . 217 240 . . Purge Threat 40 | . . . . . . . . . . . . 40 . . . Squads Dispatched 22 | . 2 3 . . . 2 . 8 . . 3 4 . . . Investigation 4 | . 1 1 . . . . . . . . 1 1 . . . Extermination 2 | . . . . . . . . . . . 2 . . . . Reinforcement 8 | . 1 2 . . . 2 . 1 . . . 2 . . . Assault 1 | . . . . . . . . . . . . 1 . . . Garrison 7 | . . . . . . . . 7 . . . . . . . Intercept . | . . . . . . . . . . . . . . . . Searches Triggered . | . . . . . . . . . . . . . . . . Construction Impeded 3 | . . . . . . 1 . . . . . 2 . . . Haulers Reinforced . | . . . . . . . . . . . . . . . . Active Scanning Responses . | . . . . . . . . . . . . . . . . Cargo Convoy Interrupts . | . . . . . . . . . . . . . . . . Stealth | -11 -10 -9 -9 -9 -8 -8 -8 -8 -8 -8 -6 -6 -6 -5 -4 --------- Run | Yrd Mat Mat Min Exi Min Mat Gar Sto Rec Scr Fac Ext Cet Fac Fac Distress Signals 14 | . . 1 . . . 2 . 4 . . 1 4 2 . . Communications Jammed . | . . . . . . . . . . . . . . . . Distress Signals . | . . . . . . . . . . . . . . . . Times Spotted 168 | . 5 16 . . 20 14 10 32 1 . 13 46 9 . 2 Peak Tracking Total 15 | . 4 15 . . 12 8 7 6 1 . 5 7 5 . 2 Tactical Retreats 17 | . . . . . 3 1 5 4 . . 1 1 2 . . Traps | -11 -10 -9 -9 -9 -8 -8 -8 -8 -8 -8 -6 -6 -6 -5 -4 ------- Run | Yrd Mat Mat Min Exi Min Mat Gar Sto Rec Scr Fac Ext Cet Fac Fac Traps Triggered 12 | . 1 . . . . 4 5 . . . . 2 . . . Indirectly . | . . . . . . . . . . . . . . . . Trap Hack Attempts . | . . . . . . . . . . . . . . . . Triggered . | . . . . . . . . . . . . . . . . Disarmed 6 | . . . . . . . . . . . . 6 . . . Reprogrammed . | . . . . . . . . . . . . . . . . Reused . | . . . . . . . . . . . . . . . . Traps Extracted . | . . . . . . . . . . . . . . . . Installed . | . . . . . . . . . . . . . . . . Triggered . | . . . . . . . . . . . . . . . . Machines | -11 -10 -9 -9 -9 -8 -8 -8 -8 -8 -8 -6 -6 -6 -5 -4 ---------- Run | Yrd Mat Mat Min Exi Min Mat Gar Sto Rec Scr Fac Ext Cet Fac Fac Machines Disabled 16 | . . . . . . . 1 5 . . 1 9 . . . Max in Single Turn 2 | . . . . . . . 1 1 . . 1 2 . . . Garrison Relay 1 | . . . . . . . 1 . . . . . . . . Energy Cycler 1 | . . . . . . . . . . . . 1 . . . Machines Repaired . | . . . . . . . . . . . . . . . . Machines Dismantled . | . . . . . . . . . . . . . . . . Machines Sabotaged . | . . . . . . . . . . . . . . . . Overloaded Fab Kills . | . . . . . . . . . . . . . . . . Hacking | -11 -10 -9 -9 -9 -8 -8 -8 -8 -8 -8 -6 -6 -6 -5 -4 --------- Run | Yrd Mat Mat Min Exi Min Mat Gar Sto Rec Scr Fac Ext Cet Fac Fac Machines Accessed 43 | . 1 1 . 1 . 4 2 9 12 . 5 5 1 1 1 Terminals 27 | . 1 1 . . . 2 2 8 5 . 2 4 1 . 1 Fabricators 1 | . . . . . . . . . . . 1 . . . . Repair Stations 3 | . . . . . . . . 1 . . 1 1 . . . Recycling Units 7 | . . . . . . . . . 6 . 1 . . . . Scanalyzers 1 | . . . . . . 1 . . . . . . . . . Garrison Access 2 | . . . . . . 1 . . . . . . . 1 . Total Hacks 103 | . 2 4 . 1 . 12 3 24 24 . 8 18 2 2 3 Successful 59 | . . . . 1 . 8 2 13 16 . 5 12 1 . 1 Failed 44 | . 2 4 . . . 4 1 11 8 . 3 6 1 2 2 Catastrophic 7 | . 1 . . . . . 1 . 2 . . . . 2 1 Database Lockouts . | . . . . . . . . . . . . . . . . Manual 56 | . 2 4 . 1 . 3 1 12 25 . . 6 1 . 1 Terminals 71 | . 2 4 . . . 6 3 18 15 . 3 15 2 . 3 Fabricators 2 | . . . . . . . . . . . 2 . . . . Repair Stations 11 | . . . . . . . . 6 . . 2 3 . . . Recycling Units 9 | . . . . . . . . . 8 . 1 . . . . Scanalyzers 5 | . . . . . . 5 . . . . . . . . . Garrison Access 3 | . . . . . . 1 . . . . . . . 2 . Terminal Hacks 26 | . . . . 1 . 2 2 4 4 . 2 9 1 . 1 Record 3 | . . . . 1 . . . . 1 . . 1 . . . Part Schematic 1 | . . . . . . . . . 1 . . . . . . Prototype ID Bank 3 | . . . . . . 1 . 1 . . . 1 . . . Open Door 5 | . . . . . . . . 1 . . 1 2 1 . . Emergency Access Points 1 | . . . . . . . 1 . . . . . . . . Terminal Index 1 | . . . . . . . . . 1 . . . . . . Unreport Threat 2 | . . . . . . . . . . . . 2 . . . Locate Traps 2 | . . . . . . . . 1 . . . 1 . . . Disarm Traps 1 | . . . . . . . . . . . . 1 . . . Hauler Manifests 4 | . . . . . . 1 . 1 1 . . 1 . . . Registered Components 2 | . . . . . . . . . . . 1 . . . 1 Security Stations 1 | . . . . . . . 1 . . . . . . . . Fabricator Hacks 2 | . . . . . . . . . . . 2 . . . . Load Schematic 1 | . . . . . . . . . . . 1 . . . . Build 1 | . . . . . . . . . . . 1 . . . . Repair Station Hacks 5 | . . . . . . . . 2 . . . 3 . . . Scan Component 3 | . . . . . . . . 1 . . . 2 . . . Repair 2 | . . . . . . . . 1 . . . 1 . . . Recycling Unit Hacks 1 | . . . . . . . . . . . 1 . . . . Retrieve Components 1 | . . . . . . . . . . . 1 . . . . Scanalyzer 3 | . . . . . . 3 . . . . . . . . . Insert Component 2 | . . . . . . 2 . . . . . . . . . Analyze 1 | . . . . . . 1 . . . . . . . . . Garrison Access Hacks 1 | . . . . . . 1 . . . . . . . . . Unlock Access 1 | . . . . . . 1 . . . . . . . . . Unauthorized Hacks 21 | . . . . . . 2 . 7 12 . . . . . . Terminals 15 | . . . . . . 2 . 7 6 . . . . . . Botnet 3 | . . . . . . 1 . 1 1 . . . . . . Skim 12 | . . . . . . 1 . 6 5 . . . . . . Fabricators . | . . . . . . . . . . . . . . . . Repair Stations . | . . . . . . . . . . . . . . . . Recycling Units 6 | . . . . . . . . . 6 . . . . . . Tunnel 6 | . . . . . . . . . 6 . . . . . . Scanalyzers . | . . . . . . . . . . . . . . . . Garrison Access . | . . . . . . . . . . . . . . . . Data Cores Recovered 1 | . . . . . . . . 1 . . . . . . . Used 1 | . . . . . . . . 1 . . . . . . . Hacking Detections 26 | . 1 1 . . . 2 2 6 6 . 3 3 . 1 1 Full Trace Events 5 | . 1 1 . . . . . . 1 . 1 1 . . . Feedback Events . | . . . . . . . . . . . . . . . . Feedback Blocked . | . . . . . . . . . . . . . . . . Robot Schematics Acquired . | . . . . . . . . . . . . . . . . Robots Built . | . . . . . . . . . . . . . . . . Authchips . | . . . . . . . . . . . . . . . . Time . | . . . . . . . . . . . . . . . . Total Robot Build Rating . | . . . . . . . . . . . . . . . . Part Schematics Acquired 2 | . . . . . . 1 . . 1 . . . . . . Parts Built 1 | . . . . . . . . . . . 1 . . . . Authchips . | . . . . . . . . . . . . . . . . Time 102 | . . . . . . . . . . . 102 . . . . Total Part Build Rating 8 | . . . . . . . . . . . 8 . . . . Parts Repaired 2 | . . . . . . . . 1 . . . 1 . . . Time 196 | . . . . . . . . 136 . . . 60 . . . Parts Recycled . | . . . . . . . . . . . . . . . . Recycled Matter . | . . . . . . . . . . . . . . . . Retrieved Matter . | . . . . . . . . . . . . . . . . Retrieved Components 1 | . . . . . . . . . . . 1 . . . . Parts Scanalyzed 1 | . . . . . . 1 . . . . . . . . . Part Schematics Acquired 1 | . . . . . . 1 . . . . . . . . . Parts Damaged 1 | . . . . . . 1 . . . . . . . . . Bothacking | -11 -10 -9 -9 -9 -8 -8 -8 -8 -8 -8 -6 -6 -6 -5 -4 ------------ Run | Yrd Mat Mat Min Exi Min Mat Gar Sto Rec Scr Fac Ext Cet Fac Fac Used RIF Installer . | . . . . . . . . . . . . . . . . Robots Hacked 1 | . . . . . . . . . . . . 1 . . . Non-combat . | . . . . . . . . . . . . . . . . Combat 1 | . . . . . . . . . . . . 1 . . . Robot Hacks Applied 1 | . . . . . . . . . . . . 1 . . . parse_system 1 | . . . . . . . . . . . . 1 . . . Relay Couplers Released 5 | . . . . . . . 5 . . . . . . . . Machine Destruction 5 | . . . . . . . 5 . . . . . . . . Fabnet Peak Effective % . | . . . . . . . . . . . . . . . . Robots Rewired 19 | . . . . . . . . . . . . 19 . . . Allies Hacked . | . . . . . . . . . . . . . . . . Hacks Repelled . | . . . . . . . . . . . . . . . . Allies | -11 -10 -9 -9 -9 -8 -8 -8 -8 -8 -8 -6 -6 -6 -5 -4 -------- Run | Yrd Mat Mat Min Exi Min Mat Gar Sto Rec Scr Fac Ext Cet Fac Fac Total Allies 43 | . . . . . . . . 10 . . . 28 5 . . Largest Group 14 | . . . . . . . . 10 . . . 14 11 2 1 Highest-Rated Group 751 | . . . . . . . . 173 . . . 534 751 167 34 Highest-Rated Ally 159 | . . . . . . . . 29 . . . 159 143 133 34 Initial Warlord ECA Mod 3 | . . . . . . . . 1 1 1 . . . . . Total Orders 3 | . . . . . . . . 2 . . . . . . 1 STAY 1 | . . . . . . . . . . . . . . . 1 ROAM 2 | . . . . . . . . 2 . . . . . . . Ally Attacks 356 | . . . . . . . . 127 . . . 195 34 . . Total Damage 7071 | . . . . . . . . 1578 . . . 3979 1514 . . Kills 60 | . . . . . . . . 17 . . . 35 8 . . Allies Corrupted 2 | . . . . . . . . . . . . 2 . . . Allies Melted . | . . . . . . . . . . . . . . . . Intel | -11 -10 -9 -9 -9 -8 -8 -8 -8 -8 -8 -6 -6 -6 -5 -4 ------- Run | Yrd Mat Mat Min Exi Min Mat Gar Sto Rec Scr Fac Ext Cet Fac Fac Active Infowar (turns) 3968 | 2 92 116 . . 1 55 233 141 800 194 680 866 443 172 173 Optics 2095 | . . . . . . . . . 607 194 680 614 . . . Sensors 3425 | . . . . . 1 . . 141 800 194 635 866 443 172 173 Seismic 210 | 2 92 116 . . . . . . . . . . . . . Machine Analysis 288 | . . . . . . 55 233 . . . . . . . . Robot Analysis Total . | . . . . . . . . . . . . . . . . Derelict Logs Recovered . | . . . . . . . . . . . . . . . . Drone Launches . | . . . . . . . . . . . . . . . . Drone Recoveries . | . . . . . . . . . . . . . . . . Exploration | -11 -10 -9 -9 -9 -8 -8 -8 -8 -8 -8 -6 -6 -6 -5 -4 ------------- Run | Yrd Mat Mat Min Exi Min Mat Gar Sto Rec Scr Fac Ext Cet Fac Fac Turns Passed 5403 | 42 92 121 37 118 222 223 407 783 810 194 680 866 463 172 173 Spaces Moved 5349 | 42 154 125 40 219 316 331 399 641 576 496 652 767 350 110 131 Core 1287 | 42 154 125 40 219 316 45 220 126 . . . . . . . Treads . | . . . . . . . . . . . . . . . . Legs 347 | . . . . . . . . . . . . . 106 110 131 Wheels . | . . . . . . . . . . . . . . . . Hover 3715 | . . . . . . 286 179 515 576 496 652 767 244 . . Flight . | . . . . . . . . . . . . . . . . Fastest Speed 38 | 50 50 50 50 50 50 50 50 38 38 38 38 38 40 120 120 Average Speed 49 | 50 50 82 50 50 50 51 50 46 38 38 38 38 69 120 120 Slowest Speed 190 | 50 50 100 50 50 50 170 100 100 38 38 38 40 190 120 120 Overloaded Moves . | . . . . . . . . . . . . . . . . Propulsion Burnouts . | . . . . . . . . . . . . . . . . Robots Hopped . | . . . . . . . . . . . . . . . . Potential Cave-ins 10 | . . . . . . . . . . . . 10 . . . Cave-ins Triggered 1 | . . . . . . . . . . . . 1 . . . Exploration Rate (%) 44 | 3 42 28 16 60 85 28 38 76 95 53 15 86 81 3 5 Regions Visited 15 Branch Regions 8 Pre-discovered Areas 12 | . . . . 1 . . . 2 9 . . . . . . Known Exits Taken 8 | . . . . . . 1 . 1 1 1 1 1 1 1 . Unknown Exits Taken 6 | 1 1 1 1 1 1 . . . . . . . . . . Scrap Searched 4 | . . . . . 1 . . . . 3 . . . . . Spaces Dug 7 | . . . . . . 1 . . . . 3 1 . . 2 Terrain Destroyed 361 | . . . . . . 8 . . . . 22 264 63 . 4 Melee 7 | . . . . . . 1 . . . . 3 1 . . 2 Projectile 9 | . . . . . . 1 . . . . 2 . 4 . 2 AOE 345 | . . . . . . 6 . . . . 17 263 59 . . Terrain Rammed . | . . . . . . . . . . . . . . . . Walls Destroyed . | . . . . . . . . . . . . . . . . Machines Disabled . | . . . . . . . . . . . . . . . . Actions | -11 -10 -9 -9 -9 -8 -8 -8 -8 -8 -8 -6 -6 -6 -5 -4 --------- Run | Yrd Mat Mat Min Exi Min Mat Gar Sto Rec Scr Fac Ext Cet Fac Fac Total 7840 | 54 168 139 56 227 379 368 583 1066 1161 501 1051 1237 560 149 141 Wait 1967 | . 15 . 16 . 61 9 104 302 574 . 352 312 183 39 . Move 5333 | 41 153 124 39 218 315 331 397 640 575 495 651 765 349 109 131 Hop . | . . . . . . . . . . . . . . . . Pick Up 35 | 4 . 2 1 . . 2 1 10 . 2 5 5 1 . 2 Fast Attach 65 | 5 . 2 . 3 . 11 1 18 4 1 5 5 8 1 1 Attach 16 | . . 2 . . 2 2 1 3 . . 2 3 . . 1 Detach 12 | 1 . 1 . 1 1 1 . 3 1 1 1 . 1 . . Swap 43 | . . . . 1 . . . 9 1 . 11 17 4 . . Drop 54 | . . 2 . 4 . 2 1 23 3 2 5 4 7 . 1 Fire 204 | 3 . 3 . . . 2 3 58 3 . 14 108 7 . 3 Melee 40 | . . . . . . 8 19 . . . 5 6 . . 2 Ram 3 | . . 3 . . . . . . . . . . . . . Kick . | . . . . . . . . . . . . . . . . Crush . | . . . . . . . . . . . . . . . . Escape Stasis 68 | . . . . . . . 56 . . . . 12 . . . Rewire . | . . . . . . . . . . . . . . . . Trap . | . . . . . . . . . . . . . . . . Miscellaneous . | . . . . . . . . . . . . . . . . Route ------- -11/Scrapyard -10/Materials (discovered 2 exits: *Mat / [*Min]) -9/Materials -9/Mines -9/Exiles -8/Mines -8/Materials -8/Garrison (discovered 2 exits: *Sto x2) -8/Storage (discovered 2 exits: [*Fac] / *Rec) -8/Recycling (discovered 2 exits: *Fac / *Scr) -8/Scraptown -6/Factory (discovered 5 exits: Fac x2 / Low / *Ext x2) -6/Extension (discovered 3 exits: *Fac x2 / *Cet) -6/Cetus (discovered 2 exits: *Fac / [*Arc]) -5/Factory -4/Factory History --------- Turn | Location | Event 9 | -11/Scrapyard | Discovered new exit (range 16) 43 | -11/Scrapyard | Entered Materials 118 | -10/Materials | Discovered new exit (range 14) 128 | -10/Materials | Discovered new exit (range 15) 135 | -10/Materials | Entered another Materials area 135 | -9/Materials | Evolved 2 slots: Propulsion x2 235 | -9/Materials | Discovered new exit (range 13) 256 | -9/Materials | Entered Mines 264 | -9/Mines | Found a damaged Exp. Sensor Array with a note attached 265 | -9/Mines | Found Prototype Device 268 | -9/Mines | Assembled infested the area 273 | -9/Mines | Assisted by a Guerilla fighting off Assembled 275 | -9/Mines | Deemed a non-threat by the Exiles lab entrance 275 | -9/Mines | Discovered new exit (range 5) 284 | -9/Mines | Lost 4 parts (3n1u) 293 | -9/Mines | Entered Exiles 305 | -9/Exiles | Met 8R-AWN 315 | -9/Exiles | Met EX-HEX 316 | -9/Exiles | Build established: Mutant 328 | -9/Exiles | Met EX-BIN 334 | -9/Exiles | Aligned with FarCom system 335 | -9/Exiles | Given EX-Vault access code 346 | -9/Exiles | Opened EX-Vault 348 | -9/Exiles | Found Prototype Slashing Weapon 348 | -9/Exiles | Identified Longsword +1 354 | -9/Exiles | Found Prototype Energy Cannon 354 | -9/Exiles | Identified Firepult 371 | -9/Exiles | Warned to stay clear of 0b10 Research branches 385 | -9/Exiles | Met EX-DEC 388 | -9/Exiles | Learned location of Zion (-7) 405 | -9/Exiles | Discovered new exit (range 14) 411 | -9/Exiles | Stole two prototypes: Firepult, Longsword +1 411 | -9/Exiles | Entered Mines 419 | -8/Mines | Identified Exp. Sensor Array 588 | -8/Mines | Core integrity fell below 50% 611 | -8/Mines | Core integrity fell below 20% 628 | -8/Mines | Discovered new exit (range 9) 633 | -8/Mines | Entered Materials 633 | -8/Materials | Evolved 2 slots: Utility x2 639 | -8/Materials | Lost 3 parts (1p1n1w) 856 | -8/Materials | Identified exit to Garrison 856 | -8/Materials | Entered Garrison 934 | -8/Garrison | Triggered checkpoint 1121 | -8/Garrison | Discovered new exit (range 8) 1124 | -8/Garrison | Identified exit to Storage 1125 | -8/Garrison | Attempted to access garrison exit controls, blocked by remote lockdown 1154 | -8/Garrison | Triggered checkpoint 1154 | -8/Garrison | Garrison Relay disabled 1252 | -8/Garrison | Discovered exit to Storage (range 15) 1261 | -8/Garrison | Learned Storage security intel 1263 | -8/Garrison | Entered Storage 1265 | -8/Storage | FarCom data flow suspended 1267 | -8/Storage | Met 01-MTF 1307 | -8/Storage | Assisted by bots powering up and referring to "LRC-V3" 1353 | -8/Storage | Found Prototype Energy Gun 1353 | -8/Storage | Identified 01-MTF's Shockpuncher 1355 | -8/Storage | Garrison activated, responded to threat 1403 | -8/Storage | Lost 5 allies 1531 | -8/Storage | Learned location of Recycling (-8) 1535 | -8/Storage | Discovered new exit (range 16) 1559 | -8/Storage | Loaded intel: 19 trap records 1576 | -8/Storage | Learned location of 3 exits from Factory 1581 | -8/Storage | Learned 4 Recycling zone layouts 1597 | -8/Storage | Identified exit to Recycling 1706 | -8/Storage | Garrison activated, responded to threat 1883 | -8/Storage | Repaired Broken Exp. Sensor Array 1962 | -8/Storage | Core integrity fell below 50% 2014 | -8/Storage | Garrison activated, responded to threat 2044 | -8/Storage | Used back door to open Recycling access 2046 | -8/Storage | Entered Recycling 2047 | -8/Recycling | Identified exit to Factory 2342 | -8/Recycling | Learned Storage garrison access intel 2413 | -8/Recycling | Learned location of Lower Caves (-6) 2528 | -8/Recycling | Learned 8 Factory zone layouts 2536 | -8/Recycling | Build established: Scout 2603 | -8/Recycling | Learned 4 Factory zone layouts 2628 | -8/Recycling | Learned 4 Lower Caves zone layouts 2711 | -8/Recycling | Learned 2 Storage zone layouts 2767 | -8/Recycling | Identified exit to Scraptown 2835 | -8/Recycling | Learned Factory emergency access door positions 2846 | -8/Recycling | Scanned before Scraplab entrance 2852 | -8/Recycling | Entered Scraplab 2856 | -8/Recycling | Entered Scraptown 2888 | -8/Scraptown | Heard Great Nut preacher, LISTEN AND RECITE! 3002 | -8/Scraptown | Visited Fellowship of the Rings 3018 | -8/Scraptown | Visited Cyclists 3028 | -8/Scraptown | Turned away by UFD registrar 3050 | -8/Scraptown | Entered Factory 3050 | -6/Factory | Evolved 4 slots: Power x1, Propulsion x1, Utility x2 3051 | -6/Factory | Identified exit to Extension 3052 | -6/Factory | Identified exit to Factory 3052 | -6/Factory | Identified exit to Lower Caves 3160 | -6/Factory | Fabricated Exp. Sensor Array? 3342 | -6/Factory | Build established: Hacker-Scout 3730 | -6/Factory | Entered Extension 3742 | -6/Extension | Rescued a captive Derelict 3796 | -6/Extension | Lost 4 allies 3867 | -6/Extension | Repaired Imp. VTOL Module 3891 | -6/Extension | Rescued a captive Derelict 3891 | -6/Extension | Rescued a captive Derelict 3936 | -6/Extension | Energy Cycler disabled 3936 | -6/Extension | Rescued a captive Derelict 3937 | -6/Extension | Rescued a captive Derelict 3937 | -6/Extension | Rescued a captive Derelict 3937 | -6/Extension | Rescued a captive Derelict 3938 | -6/Extension | Rescued a captive Derelict 3938 | -6/Extension | Rescued a captive Derelict 3939 | -6/Extension | Rescued a captive Derelict 3947 | -6/Extension | Rescued a captive Derelict 3950 | -6/Extension | Rescued A7 3951 | -6/Extension | Rescued a captive Derelict 4240 | -6/Extension | Spotted B-75 Beast 4245 | -6/Extension | Spotted B-75 Beast 4258 | -6/Extension | Allies destroyed B-75 Beast 4260 | -6/Extension | Discovered exit to Factory (range 19) 4305 | -6/Extension | Disrupted transfer network 4326 | -6/Extension | Lost 5 allies 4374 | -6/Extension | Lost 3 allies 4430 | -6/Extension | First assault squad dispatched 4522 | -6/Extension | Disrupted transfer network 4532 | -6/Extension | Discovered new exit (range 14) 4555 | -6/Extension | Crushed by falling debris 4556 | -6/Extension | System corruption reached 10% 4560 | -6/Extension | Discovered exit to Factory (range 15) 4585 | -6/Extension | Identified exit to Cetus 4586 | -6/Extension | Lost 4 parts (1p1n1u1w) 4596 | -6/Extension | Entered Cetus 4596 | -6/Cetus | Accompanied by 11 allies (A7) 4601 | -6/Cetus | Acquired a Cetus Manufacturing Module code from A7 4602 | -6/Cetus | Lost 3 allies 4620 | -6/Cetus | Spotted Cetus Guard 4623 | -6/Cetus | Spotted Cetus Guard 4624 | -6/Cetus | Spotted Cetus Guard 4632 | -6/Cetus | Allies destroyed Cetus Guard 4632 | -6/Cetus | Spotted Cetus Guard 4634 | -6/Cetus | Allies destroyed Cetus Guard 4636 | -6/Cetus | Destroyed Cetus Guard 4658 | -6/Cetus | Lost 3 parts (1n2u) 4665 | -6/Cetus | Lost 5 allies 4692 | -6/Cetus | Escorted A7 to Cetus Mainframe 4698 | -6/Cetus | Started Cetus Manufacturing Module 4720 | -6/Cetus | Discovered new exit (range 16) 4723 | -6/Cetus | Manufactured an Enhanced Grunt 4731 | -6/Cetus | Build established: Commander-Mutant 4748 | -6/Cetus | Manufactured an Enhanced Grunt 4773 | -6/Cetus | Manufactured an Enhanced Grunt 4798 | -6/Cetus | Manufactured an Enhanced Grunt 4823 | -6/Cetus | Manufactured an Enhanced Grunt 4884 | -6/Cetus | Spotted Cetus Guard 4890 | -6/Cetus | Spotted Cetus Guard 4891 | -6/Cetus | Spotted Cetus Guard 4892 | -6/Cetus | Spotted Cetus Guard 4910 | -6/Cetus | Allies destroyed Cetus Guard 4948 | -6/Cetus | Lost 9 allies 5034 | -6/Cetus | Discovered exit to Factory (range 15) 5059 | -6/Cetus | Entered Factory 5059 | -5/Factory | Accompanied by 2 allies (A7) 5059 | -5/Factory | Evolved 2 slots: Propulsion x1, Utility x1 5064 | -5/Factory | Received a hacking code to weaken MAIN.C 5141 | -5/Factory | Discovered new exit (range 3) 5145 | -5/Factory | Identified exit to Factory 5185 | -5/Factory | Build established: Scavenger-Mutant 5231 | -5/Factory | Entered another Factory area 5231 | -4/Factory | Accompanied by 1 ally 5231 | -4/Factory | Evolved 2 slots: Utility x2 5404 | -4/Factory | Self-destructed Last Messages --------------- XC80UZWQSY: Imp. Melee Analysis Suite NC795IL3G2: Imp. Force Field 3H5G9IAPCS: Adv. Reaction Control System 5KINTHSZ1V: Hvy. Disruptor Cannon 2ZL5EHNV5O: Kinecellerator ZBT4CI6PSW: Hcp. Storage Unit Downloaded coordinate data. 05392_ Acquired Micro-nuke Launcher. 05397_ Penetrated by Slug. 05397_ Imp. Medium Armor Plating destroyed. 05397_ Slug penetrates Wall. 05397_ Penetrated by Slug. 05398_ Slug penetrates Wall. 05400_ ALERT: All DSF locations entering lockdown mode. 05400_ Penetrated by Slug. 05400_ Slug penetrates Wall. 05400_ Penetrated by Slug. 05402_ Slug penetrates H-77 Assassin. 05403_ Penetrated by Slug. 05403_ Slug penetrates Wall. Map ----- +----------------------------------------------------+ | | | | | ?????????????????????????????????????????????????? | | ?????????????????????????????????????????????????? | | ?????????????????????????????????????????????????? | | ?????????????????????????????????????????????????? | | ?????????????????????????????????????????????????? | | ?????????????????????????????????????????????????? | | ?????????????????????????????????????????????????? | | ?????????????????????????????????????????????????? | | ?????????????????????????????????????????????????? | | #########################+#??????????????????????? | | ?????????????????????? | | ######### ?????????????????????? | | ????????# ????????????????????? | | ????????# ????????????????????? | | ????????# ????????????????????? | | ????????# ############???????????????????????? | | ????????# ###############????????????????????? | | ????????# # #????????????????????? | | ????????# " #????????????????????? | | ????????# # "" #????????????????????? | | ????????+ + "T #??????????ggg???????? | | ????????#t # "" #????????????????????? | | ????????# # #????????????????????? | | ????????# ###########@###????????????????????? | | ??????? ???????? ?????????????????????? | | ?????? ^ ?????? #????????????????????? | | ????? ???? #????????????????????? | | ???? ?? #????????????????????? | | ??? t h #????????????????????? | | ??? ##########+##### #????????????????????? | | ## ???????????????# ;????????????????????? | | ?????????????????# h#????????????????????? | | ????????????????# #????????????????????? | | ????????????????# +????????????????????? | | ????????????????# #????????????????????? | | ????????????????# +????????????????????? | | ####??????????????????#######????????????????????? | | #?????????????????????????????????????????????? | | ]] #?????????????????????????????????????????????? | | ]] #?????????????????????????????????????????????? | | #?????????????????????????????????????????????? | | #?????????????????????????????????????????????? | | #?????????????????????????????????????????????? | | #?????????????????????????????????????????????? | | ???????????????????????????????????????????????? | | #????????????????????????????????????????????????? | | ?????????????????????????????????????????????????? | | ?????????????????????????????????????????????????? | +----------------------------------------------------+ Best States ------------- Heat Dissipation 62 Energy Generation 38 Energy Capacity 775 Matter Stores 300 Matter Capacity 300 Sight Range 20 Robot Scan Range 20 Terrain Scan Density 10 Power Amplification 20 Armor Coverage 450 Evasion (%) 57 Targeting Accuracy 8 Salvage Targeting 2 Offensive Hacking 20 Defensive Hacking 10 Item Schematics ----------------- Exp. Sensor Array | -8/Materials | Scanalyzed Imp. Flight Unit | -8/Recycling | Hacked Robot Schematics ------------------ None Fabricated ------------ Exp. Sensor Array | x1 | -6/Factory Repaired ---------- Exp. Sensor Array | 62% | -8/Storage | Broken Imp. VTOL Module | 38% | -6/Extension Alien Tech Used ----------------- None Achievements -------------- None Challenges ------------ None Game ------ Seed CatalystArcsightShockpuncher Manual? 0 Play Time 01:37:44 Cumulative 171.8 hours Start 2025.05.24 @ 15:21:29 End 2025.05.26 @ 01:55:39 Sessions 11 Manual Loads 0 Difficulty Rogue Special Mode None Game No. 119 Rogue 119 Adventurer 0 Explorer 0 Win Type - Total 7 Types 6/0/1/0/0/0/0/0/0/0 Lore% 66 Gallery% 59 Achievement% 57 Wizard Run 0 Options --------- Layout 0 ASCII 0 Keyboard 1 Movement Numpad Keybinds 0 Fullscreen 1 Font 24/Proggy Map View 76x56 Zoom Use 0% Tactical HUD 1 Map Filters NONE Filters NONE Steam X RUN: 63cdaa98-4a1f-4fa3-8b5a-8e019ff642a1